[Event "Titled Tuesday Blitz April 19 Late 2022"]
[White "Demchenko, Anton"]
[Black "Perrine, Dalton"]
[WhiteFideId "4160258"]
[BlackFideId "2048434"]
[WhiteElo "2539"]
[BlackElo "2488"]
[Result "1-0"]
[Round "10"]
[TimeControl "180+1"]
[Date "2022.04.19"]
[WhiteClock "0:01:22"]
[BlackClock "0:00:01"]

1. e4 {[%clk 0:03:00]}  c5 {[%clk 0:02:55]} 2. a3 {[%clk 0:03:00]}  g6 {[%clk 0:02:54]} 3. Bc4 {[%clk 0:02:59]}  Bg7 {[%clk 0:02:54]} 4. d3 {[%clk 0:02:59]}  Nc6 {[%clk 0:02:53]} 5. Ba2 {[%clk 0:02:59]}  e6 {[%clk 0:02:46]} 6. Nc3 {[%clk 0:02:59]}  Nge7 {[%clk 0:02:45]} 7. Nge2 {[%clk 0:02:56]}  d5 {[%clk 0:02:44]} 8. Bd2 {[%clk 0:02:48]}  d4 {[%clk 0:02:39]} 9. Nb1 {[%clk 0:02:48]}  b6 {[%clk 0:02:25]} 10. O-O {[%clk 0:02:44]}  O-O {[%clk 0:02:25]} 11. Qc1 {[%clk 0:02:42]}  e5 {[%clk 0:02:01]} 12. Bh6 {[%clk 0:02:42]}  Qd6 {[%clk 0:02:00]} 13. Bxg7 {[%clk 0:02:38]}  Kxg7 {[%clk 0:02:01]} 14. Nd2 {[%clk 0:02:37]}  Be6 {[%clk 0:02:00]} 15. Bxe6 {[%clk 0:02:34]}  Qxe6 {[%clk 0:01:59]} 16. f4 {[%clk 0:02:35]}  exf4 {[%clk 0:01:44]} 17. Nxf4 {[%clk 0:02:35]}  Qd7 {[%clk 0:01:43]} 18. Nf3 {[%clk 0:02:34]}  Rae8 {[%clk 0:01:22]} 19. b4 {[%clk 0:02:25]}  cxb4 {[%clk 0:01:04]} 20. axb4 {[%clk 0:02:25]}  Nxb4 {[%clk 0:01:04]} 21. Ne5 {[%clk 0:02:07]}  Qd6 {[%clk 0:00:47]} 22. Ng4 {[%clk 0:01:54]}  f5 {[%clk 0:00:25]} 23. e5 {[%clk 0:01:45]}  Qc6 {[%clk 0:00:10]} 24. Nf6 {[%clk 0:01:45]}  Ra8 {[%clk 0:00:07]} 25. Qe1 {[%clk 0:01:24]}  Nxc2 {[%clk 0:00:02]} 26. Qh4 {[%clk 0:01:24]}  Rh8 {[%clk 0:00:01]} 27. Rac1 {[%clk 0:01:22]} 1-0


[Site "https://www.chess.com"]

[Event "Titled Tuesday Blitz April 19 Late 2022"]
[White "Dubov, Daniil"]
[Black "Babazada, Khazar"]
[WhiteFideId "24126055"]
[BlackFideId "13413554"]
[WhiteElo "2791"]
[BlackElo "2406"]
[Result "1/2-1/2"]
[Round "10"]
[TimeControl "180+1"]
[Date "2022.04.19"]
[WhiteClock "0:00:04"]
[BlackClock "0:00:03"]

1. e4 {[%clk 0:02:59]}  Nf6 {[%clk 0:03:00]} 2. e5 {[%clk 0:02:59]}  Nd5 {[%clk 0:03:00]} 3. Nc3 {[%clk 0:02:59]}  Nxc3 {[%clk 0:03:00]} 4. bxc3 {[%clk 0:03:00]}  d6 {[%clk 0:02:59]} 5. f4 {[%clk 0:03:00]}  g6 {[%clk 0:02:48]} 6. d4 {[%clk 0:03:00]}  Bg7 {[%clk 0:02:49]} 7. Bd3 {[%clk 0:02:59]}  O-O {[%clk 0:02:47]} 8. Nf3 {[%clk 0:03:00]}  c5 {[%clk 0:02:46]} 9. O-O {[%clk 0:03:00]}  cxd4 {[%clk 0:02:40]} 10. cxd4 {[%clk 0:02:59]}  Nc6 {[%clk 0:02:40]} 11. c3 {[%clk 0:02:59]}  Qc7 {[%clk 0:02:35]} 12. Be3 {[%clk 0:02:58]}  Na5 {[%clk 0:02:32]} 13. Rc1 {[%clk 0:02:57]}  Be6 {[%clk 0:02:31]} 14. Ng5 {[%clk 0:02:49]}  Bc4 {[%clk 0:02:28]} 15. Rf3 {[%clk 0:02:41]}  Bxd3 {[%clk 0:02:15]} 16. Qxd3 {[%clk 0:02:41]}  Qc4 {[%clk 0:02:16]} 17. Qd2 {[%clk 0:02:40]}  Qd5 {[%clk 0:02:05]} 18. Rh3 {[%clk 0:02:36]}  h6 {[%clk 0:02:00]} 19. Nf3 {[%clk 0:02:36]}  Nc4 {[%clk 0:02:00]} 20. Qe2 {[%clk 0:02:36]}  Qe4 {[%clk 0:01:56]} 21. Nd2 {[%clk 0:02:33]}  Nxd2 {[%clk 0:01:54]} 22. Qxd2 {[%clk 0:02:33]}  h5 {[%clk 0:01:46]} 23. Rf1 {[%clk 0:02:32]}  e6 {[%clk 0:01:42]} 24. exd6 {[%clk 0:02:28]}  Rfd8 {[%clk 0:01:41]} 25. f5 {[%clk 0:02:27]}  exf5 {[%clk 0:01:40]} 26. Bf4 {[%clk 0:02:27]}  Bf8 {[%clk 0:01:32]} 27. Be5 {[%clk 0:02:26]}  Bxd6 {[%clk 0:01:07]} 28. Bf6 {[%clk 0:02:25]}  Be7 {[%clk 0:01:07]} 29. Re3 {[%clk 0:02:21]}  Qxe3+ {[%clk 0:01:07]} 30. Qxe3 {[%clk 0:02:22]}  Bxf6 {[%clk 0:01:08]} 31. Rb1 {[%clk 0:02:14]}  b6 {[%clk 0:01:08]} 32. a4 {[%clk 0:02:14]}  Rac8 {[%clk 0:01:07]} 33. Kh1 {[%clk 0:02:13]}  Rc4 {[%clk 0:01:02]} 34. h3 {[%clk 0:02:00]}  Rdc8 {[%clk 0:00:56]} 35. Rb3 {[%clk 0:02:00]}  h4 {[%clk 0:00:56]} 36. Ra3 {[%clk 0:01:57]}  Kg7 {[%clk 0:00:54]} 37. Qd3 {[%clk 0:01:56]}  R4c7 {[%clk 0:00:49]} 38. Kg1 {[%clk 0:01:50]}  Re7 {[%clk 0:00:39]} 39. Kf2 {[%clk 0:01:37]}  Rce8 {[%clk 0:00:40]} 40. a5 {[%clk 0:01:35]}  bxa5 {[%clk 0:00:36]} 41. Rxa5 {[%clk 0:01:34]}  Re4 {[%clk 0:00:36]} 42. Qd2 {[%clk 0:01:23]}  R8e7 {[%clk 0:00:34]} 43. Ra1 {[%clk 0:01:18]}  f4 {[%clk 0:00:30]} 44. Rd1 {[%clk 0:01:07]}  Bg5 {[%clk 0:00:26]} 45. Qc2 {[%clk 0:01:03]}  Re3 {[%clk 0:00:21]} 46. d5 {[%clk 0:01:01]}  f3 {[%clk 0:00:21]} 47. gxf3 {[%clk 0:01:00]}  Bf4 {[%clk 0:00:22]} 48. d6 {[%clk 0:00:53]}  Bg3+ {[%clk 0:00:22]} 49. Kf1 {[%clk 0:00:53]}  Rd7 {[%clk 0:00:21]} 50. Kg2 {[%clk 0:00:43]}  Rxd6 {[%clk 0:00:17]} 51. Rxd6 {[%clk 0:00:42]}  Bxd6 {[%clk 0:00:18]} 52. Qd2 {[%clk 0:00:43]}  Re6 {[%clk 0:00:16]} 53. Qd4+ {[%clk 0:00:42]}  Be5 {[%clk 0:00:16]} 54. Qc5 {[%clk 0:00:41]}  Bf6 {[%clk 0:00:14]} 55. c4 {[%clk 0:00:38]}  Re2+ {[%clk 0:00:14]} 56. Kg1 {[%clk 0:00:38]}  Rc2 {[%clk 0:00:15]} 57. Kf1 {[%clk 0:00:16]}  a5 {[%clk 0:00:15]} 58. Qb5 {[%clk 0:00:16]}  Bd4 {[%clk 0:00:09]} 59. Qb3 {[%clk 0:00:16]}  Rc3 {[%clk 0:00:08]} 60. Qb5 {[%clk 0:00:04]}  Rxf3+ {[%clk 0:00:08]} 61. Kg2 {[%clk 0:00:05]}  Rg3+ {[%clk 0:00:08]} 62. Kh2 {[%clk 0:00:05]}  Rc3 {[%clk 0:00:06]} 63. Qd5 {[%clk 0:00:05]}  Bf6 {[%clk 0:00:07]} 64. c5 {[%clk 0:00:05]}  a4 {[%clk 0:00:07]} 65. c6 {[%clk 0:00:05]}  a3 {[%clk 0:00:07]} 66. Kg2 {[%clk 0:00:05]}  a2 {[%clk 0:00:07]} 67. Qxa2 {[%clk 0:00:05]}  Rxc6 {[%clk 0:00:08]} 68. Kf3 {[%clk 0:00:05]}  Rc3+ {[%clk 0:00:08]} 69. Kg2 {[%clk 0:00:06]}  Rg3+ {[%clk 0:00:08]} 70. Kh2 {[%clk 0:00:06]}  Be5 {[%clk 0:00:09]} 71. Qd5 {[%clk 0:00:06]}  f6 {[%clk 0:00:07]} 72. Qd7+ {[%clk 0:00:06]}  Kh6 {[%clk 0:00:08]} 73. Kh1 {[%clk 0:00:07]}  Kg5 {[%clk 0:00:07]} 74. Qd2+ {[%clk 0:00:07]}  Kh5 {[%clk 0:00:07]} 75. Qe2+ {[%clk 0:00:07]}  Kh6 {[%clk 0:00:08]} 76. Qd2+ {[%clk 0:00:07]}  Rg5 {[%clk 0:00:08]} 77. Qe1 {[%clk 0:00:06]}  Bg3 {[%clk 0:00:07]} 78. Qe4 {[%clk 0:00:06]}  Rf5 {[%clk 0:00:07]} 79. Kg2 {[%clk 0:00:06]}  Rf2+ {[%clk 0:00:06]} 80. Kg1 {[%clk 0:00:06]}  f5 {[%clk 0:00:07]} 81. Qd4 {[%clk 0:00:06]}  Kg5 {[%clk 0:00:06]} 82. Qd8+ {[%clk 0:00:05]}  Kf4 {[%clk 0:00:06]} 83. Qd4+ {[%clk 0:00:05]}  Kg5 {[%clk 0:00:05]} 84. Qd8+ {[%clk 0:00:06]}  Kh6 {[%clk 0:00:04]} 85. Qh8+ {[%clk 0:00:06]}  Kg5 {[%clk 0:00:05]} 86. Qd4 {[%clk 0:00:06]}  Rf4 {[%clk 0:00:03]} 87. Qd8+ {[%clk 0:00:06]}  Kh5 {[%clk 0:00:04]} 88. Qf6 {[%clk 0:00:07]}  Bf2+ {[%clk 0:00:03]} 89. Kg2 {[%clk 0:00:07]}  Bd4 {[%clk 0:00:04]} 90. Qd6 {[%clk 0:00:06]}  Re4 {[%clk 0:00:05]} 91. Qd8 {[%clk 0:00:06]}  Be5 {[%clk 0:00:05]} 92. Qd7 {[%clk 0:00:05]}  Re3 {[%clk 0:00:05]} 93. Qh7+ {[%clk 0:00:05]}  Kg5 {[%clk 0:00:05]} 94. Qe7+ {[%clk 0:00:05]}  Kh5 {[%clk 0:00:05]} 95. Qh7+ {[%clk 0:00:05]}  Kg5 {[%clk 0:00:05]} 96. Qb7 {[%clk 0:00:05]}  Rg3+ {[%clk 0:00:05]} 97. Kf1 {[%clk 0:00:05]}  Rxh3 {[%clk 0:00:06]} 98. Qg2+ {[%clk 0:00:05]}  Rg3 {[%clk 0:00:06]} 99. Qd2+ {[%clk 0:00:06]}  Bf4 {[%clk 0:00:07]} 100. Qd8+ {[%clk 0:00:06]}  Kg4 {[%clk 0:00:07]} 101. Qd1+ {[%clk 0:00:06]}  Rf3+ {[%clk 0:00:07]} 102. Kg2 {[%clk 0:00:06]}  h3+ {[%clk 0:00:08]} 103. Kh1 {[%clk 0:00:06]}  g5 {[%clk 0:00:08]} 104. Qg1+ {[%clk 0:00:06]}  Kh5 {[%clk 0:00:07]} 105. Qd1 {[%clk 0:00:06]}  g4 {[%clk 0:00:08]} 106. Qb1 {[%clk 0:00:06]}  Kh4 {[%clk 0:00:08]} 107. Qe1+ {[%clk 0:00:06]}  g3 {[%clk 0:00:08]} 108. Kg1 {[%clk 0:00:05]}  Be3+ {[%clk 0:00:09]} 109. Kh1 {[%clk 0:00:04]}  Bf2 {[%clk 0:00:04]} 110. Qe7+ {[%clk 0:00:04]}  Kg4 {[%clk 0:00:05]} 111. Qg7+ {[%clk 0:00:04]}  Kf4 {[%clk 0:00:05]} 112. Qd4+ {[%clk 0:00:05]}  Kg5 {[%clk 0:00:03]} 113. Qg7+ {[%clk 0:00:05]}  Kh4 {[%clk 0:00:04]} 114. Qh6+ {[%clk 0:00:05]}  Kg4 {[%clk 0:00:04]} 115. Qg6+ {[%clk 0:00:05]}  Kf4 {[%clk 0:00:05]} 116. Qd6+ {[%clk 0:00:06]}  Ke3 {[%clk 0:00:05]} 117. Qd3+ {[%clk 0:00:04]}  Kf4 {[%clk 0:00:04]} 118. Qd4+ {[%clk 0:00:04]}  Kg5 {[%clk 0:00:02]} 119. Qg7+ {[%clk 0:00:04]}  Kf4 {[%clk 0:00:03]} 120. Qd4+ {[%clk 0:00:04]} 1/2-1/2


[Site "https://www.chess.com"]

[Event "Titled Tuesday Blitz April 19 Late 2022"]
[White "Golubev, Mikhail"]
[Black "Martic, Ivan"]
[WhiteFideId "14100983"]
[BlackFideId "929301"]
[WhiteElo "2374"]
[BlackElo "2317"]
[Result "1/2-1/2"]
[Round "10"]
[TimeControl "180+1"]
[Date "2022.04.19"]
[WhiteClock "0:00:03"]
[BlackClock "0:00:18"]

1. e4 {[%clk 0:03:00]}  c5 {[%clk 0:02:57]} 2. Nf3 {[%clk 0:03:00]}  Nc6 {[%clk 0:02:58]} 3. Nc3 {[%clk 0:03:00]}  e6 {[%clk 0:02:55]} 4. d4 {[%clk 0:03:00]}  cxd4 {[%clk 0:02:56]} 5. Nxd4 {[%clk 0:03:00]}  a6 {[%clk 0:02:57]} 6. Be3 {[%clk 0:02:58]}  Nf6 {[%clk 0:02:53]} 7. Bd3 {[%clk 0:02:56]}  Qc7 {[%clk 0:02:43]} 8. O-O {[%clk 0:02:55]}  Nxd4 {[%clk 0:02:43]} 9. Bxd4 {[%clk 0:02:54]}  Bc5 {[%clk 0:02:44]} 10. Be2 {[%clk 0:02:54]}  d6 {[%clk 0:02:39]} 11. Qd2 {[%clk 0:02:51]}  e5 {[%clk 0:02:37]} 12. Bxc5 {[%clk 0:02:43]}  dxc5 {[%clk 0:02:30]} 13. Rad1 {[%clk 0:02:38]}  Be6 {[%clk 0:02:24]} 14. Nd5 {[%clk 0:02:14]}  Bxd5 {[%clk 0:02:24]} 15. exd5 {[%clk 0:02:14]}  Qd6 {[%clk 0:02:24]} 16. f4 {[%clk 0:02:03]}  e4 {[%clk 0:02:19]} 17. Qc3 {[%clk 0:01:56]}  O-O {[%clk 0:02:17]} 18. Qe5 {[%clk 0:01:54]}  Qb6 {[%clk 0:02:15]} 19. c4 {[%clk 0:01:29]}  Rfe8 {[%clk 0:02:12]} 20. Qc3 {[%clk 0:01:28]}  Rad8 {[%clk 0:02:07]} 21. b3 {[%clk 0:01:18]}  Qd6 {[%clk 0:01:54]} 22. g3 {[%clk 0:01:14]}  h6 {[%clk 0:01:52]} 23. Rfe1 {[%clk 0:01:10]}  Re7 {[%clk 0:01:49]} 24. Bf1 {[%clk 0:01:08]}  Rde8 {[%clk 0:01:47]} 25. Re2 {[%clk 0:01:08]}  b5 {[%clk 0:01:38]} 26. cxb5 {[%clk 0:00:47]}  axb5 {[%clk 0:01:39]} 27. Rc2 {[%clk 0:00:47]}  e3 {[%clk 0:01:32]} 28. Re1 {[%clk 0:00:39]}  c4 {[%clk 0:00:58]} 29. bxc4 {[%clk 0:00:36]}  bxc4 {[%clk 0:00:56]} 30. Qd4 {[%clk 0:00:22]}  Re4 {[%clk 0:00:54]} 31. Qa7 {[%clk 0:00:19]}  Qxd5 {[%clk 0:00:49]} 32. Bg2 {[%clk 0:00:15]}  Qd3 {[%clk 0:00:45]} 33. Bxe4 {[%clk 0:00:15]}  Rxe4 {[%clk 0:00:43]} 34. Rce2 {[%clk 0:00:15]}  Nd5 {[%clk 0:00:39]} 35. Qa8+ {[%clk 0:00:12]}  Kh7 {[%clk 0:00:38]} 36. Qc8 {[%clk 0:00:12]}  Re6 {[%clk 0:00:34]} 37. f5 {[%clk 0:00:11]}  Re5 {[%clk 0:00:30]} 38. a4 {[%clk 0:00:08]}  Nc3 {[%clk 0:00:28]} 39. Rb2 {[%clk 0:00:05]}  e2 {[%clk 0:00:27]} 40. a5 {[%clk 0:00:04]}  Qe3+ {[%clk 0:00:26]} 41. Kg2 {[%clk 0:00:04]}  Qe4+ {[%clk 0:00:26]} 42. Kg1 {[%clk 0:00:04]}  Qd4+ {[%clk 0:00:23]} 43. Kg2 {[%clk 0:00:04]}  Qe4+ {[%clk 0:00:21]} 44. Kg1 {[%clk 0:00:04]}  Qe3+ {[%clk 0:00:19]} 45. Kg2 {[%clk 0:00:03]}  Qe4+ {[%clk 0:00:18]} 1/2-1/2


[Site "https://www.chess.com"]

[Event "Titled Tuesday Blitz April 19 Late 2022"]
[White "Goryachkina, Aleksandra"]
[Black "Wagner, Dinara"]
[WhiteFideId "4147103"]
[BlackFideId "24157570"]
[WhiteElo "2426"]
[BlackElo "2216"]
[Result "1/2-1/2"]
[Round "10"]
[TimeControl "180+1"]
[Date "2022.04.19"]
[WhiteClock "0:00:05"]
[BlackClock "0:00:16"]

1. e4 {[%clk 0:02:59]}  c5 {[%clk 0:02:59]} 2. Nf3 {[%clk 0:02:59]}  d6 {[%clk 0:02:58]} 3. c3 {[%clk 0:02:59]}  Nf6 {[%clk 0:02:56]} 4. Be2 {[%clk 0:02:59]}  g6 {[%clk 0:02:47]} 5. O-O {[%clk 0:02:59]}  Bg7 {[%clk 0:02:48]} 6. Bb5+ {[%clk 0:02:59]}  Bd7 {[%clk 0:02:47]} 7. Bxd7+ {[%clk 0:02:59]}  Qxd7 {[%clk 0:02:47]} 8. Re1 {[%clk 0:03:00]}  O-O {[%clk 0:01:57]} 9. d4 {[%clk 0:02:59]}  cxd4 {[%clk 0:01:57]} 10. cxd4 {[%clk 0:02:59]}  d5 {[%clk 0:01:58]} 11. e5 {[%clk 0:02:58]}  Ne4 {[%clk 0:01:59]} 12. Nc3 {[%clk 0:02:56]}  Nxc3 {[%clk 0:01:56]} 13. bxc3 {[%clk 0:02:57]}  Nc6 {[%clk 0:01:56]} 14. h4 {[%clk 0:02:55]}  h5 {[%clk 0:01:52]} 15. Bf4 {[%clk 0:02:22]}  Nd8 {[%clk 0:01:52]} 16. Qd2 {[%clk 0:02:20]}  Ne6 {[%clk 0:01:50]} 17. Bh6 {[%clk 0:02:19]}  Rfc8 {[%clk 0:01:49]} 18. Bxg7 {[%clk 0:02:07]}  Kxg7 {[%clk 0:01:49]} 19. Ng5 {[%clk 0:02:00]}  Nxg5 {[%clk 0:01:47]} 20. hxg5 {[%clk 0:01:57]}  Qe6 {[%clk 0:01:39]} 21. Re3 {[%clk 0:01:42]}  Rc7 {[%clk 0:01:30]} 22. Rae1 {[%clk 0:01:41]}  Rac8 {[%clk 0:01:30]} 23. Rf3 {[%clk 0:01:41]}  Rc6 {[%clk 0:01:29]} 24. Ree3 {[%clk 0:01:24]}  Qg4 {[%clk 0:01:27]} 25. Rg3 {[%clk 0:01:10]}  Qf4 {[%clk 0:01:24]} 26. Rgf3 {[%clk 0:01:01]}  Qxg5 {[%clk 0:01:21]} 27. Rxf7+ {[%clk 0:01:00]}  Kg8 {[%clk 0:01:02]} 28. Rff3 {[%clk 0:00:33]}  Rxc3 {[%clk 0:01:02]} 29. Rxc3 {[%clk 0:00:31]}  Qxd2 {[%clk 0:01:01]} 30. Rxc8+ {[%clk 0:00:30]}  Kg7 {[%clk 0:01:02]} 31. Rc7 {[%clk 0:00:30]}  Qxd4 {[%clk 0:00:57]} 32. Rxe7+ {[%clk 0:00:29]}  Kh6 {[%clk 0:00:57]} 33. Rff7 {[%clk 0:00:23]}  Kg5 {[%clk 0:00:48]} 34. g3 {[%clk 0:00:18]}  Qd1+ {[%clk 0:00:46]} 35. Kg2 {[%clk 0:00:18]}  Qe2 {[%clk 0:00:46]} 36. Rxb7 {[%clk 0:00:14]}  Qe4+ {[%clk 0:00:45]} 37. Kh2 {[%clk 0:00:12]}  Qe2 {[%clk 0:00:43]} 38. Rxa7 {[%clk 0:00:10]}  d4 {[%clk 0:00:43]} 39. Kh3 {[%clk 0:00:08]}  Qg4+ {[%clk 0:00:39]} 40. Kg2 {[%clk 0:00:08]}  Qe4+ {[%clk 0:00:40]} 41. f3 {[%clk 0:00:08]}  Qe2+ {[%clk 0:00:38]} 42. Kh3 {[%clk 0:00:07]}  Qf1+ {[%clk 0:00:39]} 43. Kh2 {[%clk 0:00:07]}  Qf2+ {[%clk 0:00:39]} 44. Kh3 {[%clk 0:00:08]}  Qf1+ {[%clk 0:00:37]} 45. Kh2 {[%clk 0:00:08]}  d3 {[%clk 0:00:34]} 46. Rad7 {[%clk 0:00:03]}  Qf2+ {[%clk 0:00:14]} 47. Kh3 {[%clk 0:00:04]}  Qf1+ {[%clk 0:00:14]} 48. Kh2 {[%clk 0:00:04]}  Qf2+ {[%clk 0:00:15]} 49. Kh3 {[%clk 0:00:05]}  Qf1+ {[%clk 0:00:16]} 50. Kh2 {[%clk 0:00:05]} 1/2-1/2


[Site "https://www.chess.com"]

[Event "Titled Tuesday Blitz April 19 Late 2022"]
[White "Hambleton, Aman"]
[Black "Tanenbaum, Zachary"]
[WhiteFideId "2606577"]
[BlackFideId "2060850"]
[WhiteElo "2552"]
[BlackElo "2168"]
[Result "1/2-1/2"]
[Round "10"]
[TimeControl "180+1"]
[Date "2022.04.19"]
[WhiteClock "0:00:02"]
[BlackClock "0:00:04"]

1. d4 {[%clk 0:03:00]}  d5 {[%clk 0:03:00]} 2. c4 {[%clk 0:02:51]}  dxc4 {[%clk 0:03:00]} 3. e4 {[%clk 0:02:46]}  c5 {[%clk 0:03:01]} 4. d5 {[%clk 0:02:45]}  e6 {[%clk 0:03:01]} 5. Bxc4 {[%clk 0:02:45]}  Nf6 {[%clk 0:03:02]} 6. Nc3 {[%clk 0:02:44]}  exd5 {[%clk 0:03:03]} 7. Nxd5 {[%clk 0:02:44]}  Nxd5 {[%clk 0:03:02]} 8. Bxd5 {[%clk 0:02:43]}  Be7 {[%clk 0:02:58]} 9. Ne2 {[%clk 0:02:36]}  O-O {[%clk 0:02:57]} 10. O-O {[%clk 0:02:36]}  Nd7 {[%clk 0:02:52]} 11. Nc3 {[%clk 0:02:32]}  Nf6 {[%clk 0:02:52]} 12. Bc4 {[%clk 0:02:30]}  Be6 {[%clk 0:02:09]} 13. Bxe6 {[%clk 0:01:56]}  fxe6 {[%clk 0:02:10]} 14. Qb3 {[%clk 0:01:36]}  Qc8 {[%clk 0:02:09]} 15. Qc4 {[%clk 0:01:37]}  Ng4 {[%clk 0:01:57]} 16. f4 {[%clk 0:01:34]}  Qc6 {[%clk 0:01:41]} 17. h3 {[%clk 0:01:27]}  Nf6 {[%clk 0:01:41]} 18. Be3 {[%clk 0:01:26]}  a6 {[%clk 0:01:29]} 19. a4 {[%clk 0:01:27]}  b5 {[%clk 0:01:29]} 20. axb5 {[%clk 0:01:10]}  axb5 {[%clk 0:01:30]} 21. Qxb5 {[%clk 0:01:08]}  Qxb5 {[%clk 0:01:30]} 22. Nxb5 {[%clk 0:01:09]}  Nxe4 {[%clk 0:01:30]} 23. Nc7 {[%clk 0:00:37]}  Rxa1 {[%clk 0:01:27]} 24. Rxa1 {[%clk 0:00:38]}  Rb8 {[%clk 0:01:19]} 25. Nxe6 {[%clk 0:00:37]}  Rxb2 {[%clk 0:01:18]} 26. Rc1 {[%clk 0:00:38]}  Rb5 {[%clk 0:00:28]} 27. Rc4 {[%clk 0:00:26]}  Ng3 {[%clk 0:00:25]} 28. Kf2 {[%clk 0:00:07]}  Nf5 {[%clk 0:00:23]} 29. Bxc5 {[%clk 0:00:07]}  Rb2+ {[%clk 0:00:21]} 30. Kg1 {[%clk 0:00:05]}  Bxc5+ {[%clk 0:00:20]} 31. Rxc5 {[%clk 0:00:05]}  Ne3 {[%clk 0:00:13]} 32. Rc8+ {[%clk 0:00:02]}  Kf7 {[%clk 0:00:13]} 33. Ng5+ {[%clk 0:00:02]}  Kg6 {[%clk 0:00:11]} 34. g4 {[%clk 0:00:01]}  Rc2 {[%clk 0:00:05]} 35. Rxc2 {[%clk 0:00:01]}  Nxc2 {[%clk 0:00:05]} 36. Kf2 {[%clk 0:00:02]}  Nd4 {[%clk 0:00:05]} 37. Kg3 {[%clk 0:00:02]}  Ne2+ {[%clk 0:00:06]} 38. Kf3 {[%clk 0:00:03]}  Nd4+ {[%clk 0:00:06]} 39. Ke4 {[%clk 0:00:02]}  Ne2 {[%clk 0:00:06]} 40. Ne6 {[%clk 0:00:01]}  Ng1 {[%clk 0:00:06]} 41. h4 {[%clk 0:00:02]}  Kf6 {[%clk 0:00:06]} 42. Nd4 {[%clk 0:00:02]}  Nh3 {[%clk 0:00:05]} 43. Ke3 {[%clk 0:00:01]}  h6 {[%clk 0:00:05]} 44. h5 {[%clk 0:00:01]}  g5 {[%clk 0:00:04]} 45. hxg6 {[%clk 0:00:02]}  Kxg6 {[%clk 0:00:04]} 46. Nf5 {[%clk 0:00:02]}  h5 {[%clk 0:00:03]} 47. Nh4+ {[%clk 0:00:03]}  Kh6 {[%clk 0:00:03]} 48. Nf5+ {[%clk 0:00:03]}  Kg6 {[%clk 0:00:03]} 49. Nh4+ {[%clk 0:00:03]}  Kh6 {[%clk 0:00:04]} 50. Kf3 {[%clk 0:00:02]}  hxg4+ {[%clk 0:00:04]} 51. Kxg4 {[%clk 0:00:02]}  Nxf4 {[%clk 0:00:04]} 1/2-1/2


[Site "https://www.chess.com"]

[Event "Titled Tuesday Blitz April 19 Late 2022"]
[White "Hoffmann, Asa"]
[Black "Omariev, Maksim"]
[WhiteFideId "2001470"]
[BlackFideId "4193423"]
[WhiteElo "2117"]
[BlackElo "2483"]
[Result "1-0"]
[Round "10"]
[TimeControl "180+1"]
[Date "2022.04.19"]
[WhiteClock "0:00:14"]
[BlackClock "0:00:07"]

1. d4 {[%clk 0:02:57]}  h5 {[%clk 0:03:00]} 2. e4 {[%clk 0:02:56]}  h4 {[%clk 0:03:01]} 3. Nc3 {[%clk 0:02:55]}  c6 {[%clk 0:03:01]} 4. f4 {[%clk 0:02:54]}  d5 {[%clk 0:03:01]} 5. Nf3 {[%clk 0:02:49]}  dxe4 {[%clk 0:02:58]} 6. Nxe4 {[%clk 0:02:48]}  h3 {[%clk 0:02:59]} 7. g3 {[%clk 0:02:45]}  Bg4 {[%clk 0:02:57]} 8. Be2 {[%clk 0:02:45]}  e6 {[%clk 0:02:55]} 9. c3 {[%clk 0:02:44]}  Nd7 {[%clk 0:02:52]} 10. Be3 {[%clk 0:02:43]}  Ngf6 {[%clk 0:02:49]} 11. Nf2 {[%clk 0:02:43]}  Bf5 {[%clk 0:02:46]} 12. Qd2 {[%clk 0:02:41]}  Qa5 {[%clk 0:02:42]} 13. b4 {[%clk 0:02:35]}  Qa3 {[%clk 0:02:39]} 14. Qc1 {[%clk 0:02:25]}  Qxc1+ {[%clk 0:02:22]} 15. Bxc1 {[%clk 0:02:24]}  Be7 {[%clk 0:01:54]} 16. a3 {[%clk 0:02:22]}  a5 {[%clk 0:01:48]} 17. b5 {[%clk 0:02:21]}  c5 {[%clk 0:01:48]} 18. Bd2 {[%clk 0:02:10]}  Rc8 {[%clk 0:01:47]} 19. O-O {[%clk 0:02:04]}  b6 {[%clk 0:01:44]} 20. Rfe1 {[%clk 0:01:58]}  Ne4 {[%clk 0:01:38]} 21. Nxe4 {[%clk 0:01:52]}  Bxe4 {[%clk 0:01:39]} 22. Be3 {[%clk 0:01:50]}  f6 {[%clk 0:01:31]} 23. c4 {[%clk 0:01:46]}  Kf7 {[%clk 0:01:29]} 24. Rad1 {[%clk 0:01:41]}  cxd4 {[%clk 0:01:27]} 25. Nxd4 {[%clk 0:01:36]}  Bxa3 {[%clk 0:01:22]} 26. Bf3 {[%clk 0:01:18]}  Nc5 {[%clk 0:01:09]} 27. Bxe4 {[%clk 0:01:08]}  Nxe4 {[%clk 0:01:10]} 28. Nc6 {[%clk 0:01:07]}  Bc5 {[%clk 0:00:43]} 29. Rd7+ {[%clk 0:01:02]}  Kf8 {[%clk 0:00:39]} 30. Bxc5+ {[%clk 0:00:49]}  Nxc5 {[%clk 0:00:40]} 31. Ra7 {[%clk 0:00:43]}  Rh5 {[%clk 0:00:29]} 32. Rd1 {[%clk 0:00:32]}  e5 {[%clk 0:00:26]} 33. fxe5 {[%clk 0:00:30]}  fxe5 {[%clk 0:00:27]} 34. Rf1+ {[%clk 0:00:27]}  Kg8 {[%clk 0:00:16]} 35. Ne7+ {[%clk 0:00:26]}  Kh7 {[%clk 0:00:16]} 36. Nxc8 {[%clk 0:00:26]}  e4 {[%clk 0:00:16]} 37. Nd6 {[%clk 0:00:22]}  e3 {[%clk 0:00:15]} 38. Re1 {[%clk 0:00:22]}  Re5 {[%clk 0:00:15]} 39. Nf7 {[%clk 0:00:21]}  Re4 {[%clk 0:00:14]} 40. Ng5+ {[%clk 0:00:21]}  Kg6 {[%clk 0:00:06]} 41. Nxe4 {[%clk 0:00:20]}  Nxe4 {[%clk 0:00:07]} 42. Rxe3 {[%clk 0:00:20]}  Nd2 {[%clk 0:00:07]} 43. c5 {[%clk 0:00:18]}  bxc5 {[%clk 0:00:07]} 44. b6 {[%clk 0:00:18]}  Nc4 {[%clk 0:00:07]} 45. Rc3 {[%clk 0:00:17]}  Nxb6 {[%clk 0:00:07]} 46. Ra6 {[%clk 0:00:17]}  Kf5 {[%clk 0:00:07]} 47. Rxb6 {[%clk 0:00:16]}  g5 {[%clk 0:00:07]} 48. Rxc5+ {[%clk 0:00:16]}  Kg4 {[%clk 0:00:08]} 49. Kf2 {[%clk 0:00:15]}  Kh5 {[%clk 0:00:07]} 50. Kf3 {[%clk 0:00:15]}  a4 {[%clk 0:00:06]} 51. g4+ {[%clk 0:00:14]}  Kh4 {[%clk 0:00:07]} 52. Rh6# {[%clk 0:00:14]} 1-0


[Site "https://www.chess.com"]